fUSD/lending_fUSD_20240819
["ID","MTS","AMOUNT","RATE_DAILY","PERIOD"]
[335253753,1724041840862,-2952.613592,0.00010998,2]
[335253754,1724041840872,-341.018635,0.00010998,2]
[335253755,1724041840882,-341.018635,0.00010998,2]
[335253756,1724041840892,-2952.613592,0.00010998,2]
[335253757,1724041841110,-2952.613592,0.00010998,2]
[335253758,1724041841121,-2952.613592,0.00010998,2]
[335253759,1724041841131,-2952.613592,0.00010998,2]
[335253760,1724041841141,-2952.613592,0.00010998,2]
[335253761,1724041841151,-2952.613592,0.00010998,2]
[335253762,1724041841162,-2952.613592,0.00010998,2]
[335253763,1724041841170,-485.528105,0.00010998,2]
[335253764,1724041841179,-485.528105,0.00010998,2]
[335253765,1724041841188,-485.528105,0.00010998,2]
[335253766,1724041841197,-485.528105,0.00010998,2]
[335253767,1724041841206,-485.528105,0.00010998,2]
[335253768,1724041841214,-485.528105,0.00010998,2]
[335253769,1724041841224,-485.528105,0.00010998,2]
[335253770,1724041841233,-485.528105,0.00010998,2]
[335253771,1724041841242,-485.528105,0.00010998,2]
[335253772,1724041841251,-485.528105,0.00010998,2]
[335253773,1724041841260,-485.528105,0.00010998,2]
[335253774,1724041841269,-485.528105,0.00010998,2]
[335253775,1724041841278,-485.528105,0.00010998,2]
[335253776,1724041841287,-485.528105,0.00010998,2]
[335253777,1724041841296,-500.0,0.00010998,2]
[335253778,1724041841305,-151.0,0.00010998,2]
[335253779,1724041841314,-500.0,0.00010998,2]
[335253780,1724041841324,-1071.89,0.00010998,2]
[335253781,1724041841334,-151.0,0.00010998,2]
[335253782,1724041841343,-151.0,0.00010998,2]
[335253783,1724041841351,-151.623656,0.00010998,2]
[335253784,1724041841361,-892.24,0.00010998,2]
[335253785,1724041841370,-220.336943,0.00010998,2]
[335253786,1724041841379,-220.336943,0.00010998,2]
[335253787,1724041841389,-220.336943,0.00010998,2]
[335253788,1724041841398,-220.336943,0.00010998,2]
[335253789,1724041841407,-220.336943,0.00010998,2]
[335253790,1724041841416,-220.336943,0.00010998,2]
[335253791,1724041841425,-220.336943,0.00010998,2]
[335253792,1724041841434,-220.336943,0.00010998,2]
[335253793,1724041841443,-220.336943,0.00010998,2]
[335253794,1724041841453,-220.336943,0.00010998,2]
[335253795,1724041841462,-220.336943,0.00010998,2]
[335253796,1724041841471,-2557.79,0.00010998,2]
[335253797,1724041841480,-220.336943,0.00010998,2]
[335253798,1724041841489,-220.336943,0.00010998,2]
[335253799,1724041841497,-220.336937,0.00010998,2]
[335253800,1724041841506,-1237.81,0.00010998,2]
[335253801,1724041841518,-500.0,0.00010998,2]
[335253802,1724041841527,-588.57115615,0.00010998,2]
[335253803,1724041841537,-747.01,0.00010998,2]
[335253804,1724041841549,-1765.17,0.00010998,2]
[335253805,1724041841559,-1001.168319,0.00010998,2]
[335253806,1724041841568,-1001.168319,0.00010998,2]
[335253807,1724041841578,-1001.168319,0.00010998,2]
[335253808,1724041841587,-1001.168319,0.00010998,2]
[335253809,1724041841597,-1001.168319,0.00010998,2]
[335253810,1724041841607,-1001.168319,0.00010998,2]
[335253811,1724041841618,-500.0,0.00010998,2]
[335253812,1724041841627,-1001.168319,0.00010998,2]
[335253813,1724041841637,-1001.168319,0.00010998,2]
[335253814,1724041841647,-1001.168319,0.00010998,2]
[335253815,1724041841656,-1001.168319,0.00010998,2]
[335253816,1724041841666,-1001.168319,0.00010998,2]
[335253817,1724041841675,-1001.16832211,0.00010998,2]
[335253818,1724041841684,-676.49,0.00010998,2]
[335253819,1724041841694,-8226.987936,0.00010998,2]
[335253820,1724041841705,-8226.987936,0.00010998,2]
[335253821,1724041841715,-8226.987936,0.00010998,2]
[335253822,1724041841724,-8226.987936,0.00010998,2]
[335253823,1724041841734,-8226.987936,0.00010998,2]
[335253824,1724041841744,-8226.987936,0.00010998,2]
[335253825,1724041841755,-8226.987936,0.00010998,2]
[335253826,1724041841765,-8226.987936,0.00010998,2]
[335253827,1724041841774,-8226.987936,0.00010998,2]
[335253828,1724041841786,-8226.987936,0.00010998,2]
[335253829,1724041841797,-8226.987936,0.00010998,2]
[335253830,1724041841808,-8226.987936,0.00010998,2]
[335253831,1724041841816,-8226.987936,0.00010998,2]
[335253832,1724041841826,-8226.987929,0.00010998,2]
[335253833,1724041841836,-420.0,0.00010998,2]
[335253834,1724041841845,-500.0,0.00010998,2]
[335253835,1724041841855,-500.0,0.00010998,2]
[335253836,1724041841864,-500.0,0.00010998,2]
[335253837,1724041841873,-500.0,0.00010998,2]
[335253838,1724041841882,-151.0,0.00010998,2]
[335253839,1724041841891,-151.0,0.00010998,2]
[335253840,1724041841900,-151.0,0.00010998,2]
[335253841,1724041841909,-151.0,0.00010998,2]
[335253842,1724041841919,-151.0,0.00010998,2]
[335253843,1724041841929,-177.705994,0.00010998,2]
[335253844,1724041841938,-593.51,0.00010998,2]
[335253845,1724041841947,-151.0,0.00010999,2]
[335253846,1724041841956,-506.105931,0.00010999,2]
[335253847,1724041841965,-506.105931,0.00010999,2]
[335253848,1724041841973,-151.0,0.00010999,2]
[335253849,1724041841982,-151.0,0.00010999,2]
[335253850,1724041841991,-151.0,0.00010999,2]
[335253851,1724041842000,-151.0,0.00010999,2]
[335253852,1724041842009,-151.0,0.00010999,2]
[335253853,1724041842018,-151.0,0.00010999,2]
[335253854,1724041842027,-151.0,0.00010999,2]
[335253855,1724041842036,-151.0,0.00010999,2]
[335253856,1724041842045,-151.0,0.00010999,2]
[335253857,1724041842054,-151.0,0.00010999,2]
[335253858,1724041842063,-244.704771,0.00010999,2]
[335253859,1724041842072,-151.0,0.00010999,2]
[335253860,1724041842081,-151.0,0.00010999,2]
[335253861,1724041842090,-151.0,0.00010999,2]
[335253862,1724041842099,-151.0,0.00010999,2]
[335253863,1724041842108,-170.531309,0.00010999,2]
[335253864,1724041842117,-2268.589239,0.00010999,2]
[335253865,1724041842126,-2268.589239,0.00010999,2]
[335253866,1724041842135,-2268.589239,0.00010999,2]
[335253867,1724041842144,-249.966263,0.00010999,2]
[335253868,1724041842153,-2268.589239,0.00010999,2]
[335253869,1724041842163,-2268.589239,0.00010999,2]
[335253870,1724041842171,-2268.589239,0.00010999,2]
[335253871,1724041842181,-2268.589239,0.00010999,2]
[335253872,1724041842190,-2268.589239,0.00010999,2]
[335253873,1724041842199,-2268.589239,0.00010999,2]
[335253874,1724041842208,-2268.589239,0.00010999,2]
[335253875,1724041842217,-2268.589239,0.00010999,2]
[335253876,1724041842226,-2268.589239,0.00010999,2]
[335253877,1724041842235,-2268.589239,0.00010999,2]
[335253878,1724041842244,-2268.589236,0.00010999,2]
[335253879,1724041842254,-166.181651,0.00010999,2]
[335253880,1724041842263,-166.181651,0.00010999,2]
[335253881,1724041842271,-166.181651,0.00010999,2]
[335253882,1724041842280,-166.181651,0.00010999,2]
[335253883,1724041842290,-166.181651,0.00010999,2]
[335253884,1724041842299,-166.181651,0.00010999,2]
[335253885,1724041842308,-166.181651,0.00010999,2]
[335253886,1724041842318,-166.181651,0.00010999,2]
[335253887,1724041842327,-166.181651,0.00010999,2]
[335253888,1724041842339,-166.181652,0.00010999,2]
[335253889,1724041842349,-500.0,0.00010999,2]
[335253890,1724041842358,-269.257796,0.00010999,2]
[335253891,1724041842368,-269.257796,0.00010999,2]
[335253892,1724041842377,-269.257796,0.00010999,2]
[335253893,1724041842386,-269.257789,0.00010999,2]
[335253894,1724041842395,-455.495338,0.00010999,2]
[335253895,1724041842405,-455.495338,0.00010999,2]
[335253896,1724041842416,-455.495338,0.00010999,2]
[335253897,1724041842426,-455.495345,0.00010999,2]
[335253898,1724041842436,-341.018635,0.00010999,2]
[335253899,1724041842445,-2952.613592,0.00010999,2]
[335253900,1724041842455,-2952.613592,0.00010999,2]
[335253901,1724041842464,-341.018637,0.00010999,2]
[335253902,1724041842474,-2952.613592,0.00010999,2]
[335253903,1724041842483,-2952.6136,0.00010999,2]
[335253904,1724041842492,-485.528105,0.00010999,2]
[335253905,1724041842502,-485.528101,0.00010999,2]
[335253906,1724041842511,-500.0,0.00010999,2]
[335253907,1724041842520,-500.0,0.00010999,2]
[335253908,1724041842530,-500.0,0.00010999,2]
[335253909,1724041842539,-1071.89,0.00010999,2]
[335253910,1724041842549,-500.0,0.00010999,2]
[335253911,1724041842558,-1071.89,0.00010999,2]
[335253912,1724041842567,-537.85013587,0.00010999,2]
[335253913,1724041842647,-593.51,0.00010998,2]
[335253914,1724041842656,-534.03986413,0.00010999,2]
[335253915,1724041842667,-500.0,0.00010999,2]
[335253916,1724041842676,-719.4884907,0.00010999,2]
[335253922,1724041846216,-169.94000809,0.000109,2]
[335253923,1724041846228,-352.4015093,0.00010999,2]
[335253924,1724041846238,-477.65848261,0.00010999,2]
[335253925,1724041846556,-22.34151739,0.00010999,2]
[335253926,1724041846565,-892.24,0.00010999,2]
[335253927,1724041846575,-1071.89,0.00010999,2]
[335253928,1724041846584,-500.0,0.00010999,2]
[335253929,1724041846593,-892.24,0.00010999,2]
[335253930,1724041846602,-1071.89,0.00010999,2]
[335253931,1724041846611,-500.0,0.00010999,2]
[335253932,1724041846620,-1071.89,0.00010999,2]
[335253933,1724041846629,-892.24,0.00010999,2]
[335253934,1724041846638,-500.0,0.00010999,2]
[335253935,1724041846647,-1071.89,0.00010999,2]
[335253936,1724041846657,-892.24,0.00010999,2]
[335253937,1724041846667,-505.33314762,0.00010999,2]
[335253938,1724041846676,-1071.89,0.00010999,2]
[335253939,1724041846685,-486.28689494,0.00010999,2]
[335253942,1724041975937,7469.9757,9.818e-05,2]
[335253943,1724042146209,286.33,8.219e-05,2]
[335253944,1724042168634,237.0,9.83e-05,2]
[335253946,1724042263334,210.63,9.889e-05,2]
[335253947,1724042274685,22084.75,9.889e-05,2]
[335253948,1724042278838,174.15,9.889e-05,2]
[335253949,1724042325665,1912.37,9.867e-05,2]
[335253953,1724042456018,312.32,9.874e-05,2]
[335253954,1724042559068,2540.88,9.853e-05,2]
[335253955,1724042564013,926.34,9.848e-05,2]
[335253956,1724042648576,280.02,8.219e-05,2]
[335253958,1724042678468,1290.46,9.808e-05,2]
[335253959,1724042688198,172.61,9.806e-05,2]
[335253960,1724042706820,200.0,9.8e-05,2]
[335253961,1724042715296,151.94222971,9.888e-05,2]
[335253963,1724042745422,294.7,9.802e-05,2]
[335253964,1724042759085,250.0,9.797e-05,2]
[335253965,1724042776662,170.1,9.794e-05,2]
[335253967,1724042913482,750.14,9.754e-05,2]
[335253980,1724043032027,-172.19,9.941e-05,2]
[335253981,1724043032036,-891.3416333,9.988e-05,2]
[335253982,1724043032045,-3587.13204952,9.988e-05,2]
[335253983,1724043032056,-300.0,9.998e-05,2]
[335253984,1724043032066,-155.0,9.999e-05,2]
[335253985,1724043032078,-3937.52075365,9.999e-05,2]
[335253986,1724043032087,-852.08151875,9.999e-05,2]
[335253987,1724043032096,-1178.60937938,0.0001,4]
[335253988,1724043032106,-550.0,0.0001,2]
[335253989,1724043032115,-1375.09323268,0.0001,2]
[335253990,1724043032126,-155.0,0.00010009,2]
[335253991,1724043032135,-5408.22812288,0.00010009,2]
[335253992,1724043032144,-10540.75207733,0.00010009,2]
[335253993,1724043032154,-1298.34223089,0.00010009,2]
[335253994,1724043032163,-2506.41903011,0.00010009,2]
[335253995,1724043032172,-367.83900343,0.00010009,2]
[335253996,1724043032181,-1500.0,0.00010026,2]
[335253997,1724043032190,-155.0,0.00010026,2]
[335253998,1724043032199,-236.36319912,0.00010026,2]
[335253999,1724043032209,-155.36428366,0.00010026,2]
[335254000,1724043032218,-432.5166998,0.00010026,2]
[335254001,1724043032227,-1276.0146638,0.00010026,2]
[335254002,1724043032236,-165.02678942,0.00010026,2]
[335254003,1724043032245,-1276.0146638,0.00010026,2]
[335254004,1724043032254,-237.0,0.0001005,2]
[335254005,1724043032264,-159.62357463,0.00010097,2]
[335254006,1724043032273,-203.42899612,0.00010097,2]
[335254007,1724043032282,-892.62032859,0.00010097,2]
[335254008,1724043032291,-237.0,0.0001027,2]
[335254009,1724043032300,-172.51,0.0001027,2]
[335254010,1724043032308,-1334.97,0.00010318,2]
[335254011,1724043032320,-749.37644773,0.00010318,2]
[335254012,1724043032329,-426.72,0.000104,2]
[335254013,1724043032338,-150.0,0.000104,2]
[335254014,1724043032347,-426.72,0.000104,2]
[335254015,1724043032356,-150.0,0.000104,2]
[335254016,1724043032365,-425.32,0.000104,2]
[335254017,1724043032375,-280.02,0.00010469,2]
[335254018,1724043032384,-150.0,0.0001047,2]
[335254019,1724043032393,-1266.87680311,0.00010471,2]
[335254020,1724043032403,-237.0,0.0001049,2]
[335254021,1724043032412,-9999.99,0.0001049,2]
[335254022,1724043032421,-530.62,0.000105,2]
[335254023,1724043032432,-151.83,0.000105,2]
[335254024,1724043032444,-983.71,0.000105,2]
[335254025,1724043032454,-426.72,0.000105,2]
[335254026,1724043032462,-150.0,0.000105,2]
[335254027,1724043032472,-558.15,0.000105,2]
[335254028,1724043032482,-164.41632778,0.00010505,2]
[335254029,1724043032491,-150.99,0.0001055,2]
[335254030,1724043032500,-244.53278162,0.00010699,2]
[335254031,1724043032508,-237.0,0.0001071,2]
[335254032,1724043032519,-1739.7277323,0.00010799,2]
[335254033,1724043032530,-5909.535801,0.000108,2]
[335254034,1724043032540,-18644.74489598,0.00010842,2]
[335254035,1724043032550,-925.472,0.00010864,2]
[335254036,1724043032560,-408.9014,0.00010877,2]
[335254037,1724043032570,-44679.3487,0.00010879,2]
[335254038,1724043032579,-4278.717,0.00010879,2]
[335254039,1724043032588,-600.79792946,0.00010888,2]
[335254040,1724043032598,-401.62337545,0.00010888,2]
[335254041,1724043032607,-649.92257342,0.00010888,2]
[335254042,1724043032617,-160.27820876,0.00010888,2]
[335254043,1724043032629,-380.35876131,0.00010888,2]
[335254044,1724043032639,-150.0,0.00010889,2]
[335254045,1724043032649,-150.0,0.00010889,2]
[335254046,1724043032659,-151.86351,0.00010889,2]
[335254047,1724043032669,-1000.0,0.00010889,2]
[335254048,1724043032680,-1753.25499,0.0001089,2]
[335254049,1724043032691,-155.54003469,0.0001089,2]
[335254050,1724043032703,-471.4578,0.00010897,2]
[335254051,1724043032714,-319.38158331,0.00010899,2]
[335254052,1724043032724,-1583.79426262,0.000109,2]
[335254053,1724043032735,-181.56525445,0.000109,2]
[335254054,1724043032747,-168.29441087,0.000109,2]
[335254055,1724043032758,-874.93114727,0.000109,2]
[335254056,1724043032767,-1082.89,0.000109,2]
[335254057,1724043032776,-1023.0,0.000109,2]
[335254058,1724043032785,-237.0,0.0001093,2]
[335254059,1724043032795,-179.85234639,0.00010949,2]
[335254060,1724043032803,-155.0,0.00010949,2]
[335254061,1724043032813,-750.14,0.00010973,2]
[335254062,1724043032822,-15490.03475058,0.00010979,2]
[335254063,1724043032831,-151.45963,0.00010989,2]
[335254064,1724043032841,-151.0,0.00010989,2]
[335254065,1724043032850,-528.96350263,0.00010989,2]
[335254066,1724043032859,-151.0,0.00010989,2]
[335254067,1724043032868,-151.0,0.00010993,2]
[335254068,1724043032877,-151.0,0.00010993,2]
[335254069,1724043032886,-1580.127687,0.00010993,2]
[335254070,1724043032895,-1580.127687,0.00010993,2]
[335254071,1724043032904,-520.501741,0.00010993,2]
[335254072,1724043032914,-520.501741,0.00010993,2]
[335254073,1724043032925,-155.0,0.00010993,2]
[335254074,1724043032935,-268.597539,0.00010993,2]
[335254075,1724043032945,-509.48489423,0.00010998,2]
[335254076,1724043032954,-517.24591958,0.00010998,2]
[335254077,1724043032963,-500.0,0.00010998,2]
[335254078,1724043032973,-500.0,0.00010998,2]
[335254079,1724043032982,-359.02472287,0.00010998,2]
[335254080,1724043032993,-151.0,0.00010998,2]
[335254081,1724043033003,-151.0,0.00010998,2]
[335254082,1724043033012,-151.0,0.00010998,2]
[335254083,1724043033022,-151.0,0.00010998,2]
[335254084,1724043033031,-151.0,0.00010998,2]
[335254085,1724043033040,-519.89491352,0.00010998,2]
[335254086,1724043033049,-151.365556,0.00010998,2]
[335254087,1724043033059,-529.75112072,0.00010998,2]
[335254088,1724043033069,-539.20949174,0.00010998,2]
[335254089,1724043033083,-151.0,0.00010998,2]
[335254090,1724043033091,-151.853148,0.00010998,2]
[335254091,1724043033101,-521.37524982,0.00010998,2]
[335254092,1724043033110,-151.0,0.00010998,2]
[335254093,1724043033119,-151.0,0.00010998,2]
[335254094,1724043033130,-161.755834,0.00010998,2]
[335254095,1724043033139,-161.755834,0.00010998,2]
[335254096,1724043033148,-151.0,0.00010998,2]
[335254097,1724043033159,-161.755834,0.00010998,2]
[335254098,1724043033168,-151.0,0.00010998,2]
[335254099,1724043033177,-161.755834,0.00010998,2]
[335254100,1724043033187,-570.809209,0.00010998,2]
[335254101,1724043033196,-570.809209,0.00010998,2]
[335254102,1724043033206,-570.809209,0.00010998,2]
[335254103,1724043033215,-570.809209,0.00010998,2]
[335254104,1724043033225,-151.0,0.00010998,2]
[335254105,1724043033234,-151.805234,0.00010998,2]
[335254106,1724043033243,-2055.61,0.00010998,2]
[335254107,1724043033252,-2055.61,0.00010998,2]
[335254108,1724043033261,-151.0,0.00010998,2]
[335254109,1724043033271,-151.0,0.00010998,2]
[335254110,1724043033280,-151.0,0.00010998,2]
[335254111,1724043033289,-151.347735,0.00010998,2]
[335254112,1724043033298,-3073.44,0.00010998,2]
[335254113,1724043033307,-3073.44,0.00010998,2]
[335254114,1724043033316,-1494.63,0.00010998,2]
[335254115,1724043033326,-1494.63,0.00010998,2]
[335254116,1724043033335,-2344.64,0.00010998,2]
[335254117,1724043033344,-2344.64,0.00010998,2]
[335254118,1724043033353,-151.0,0.00010998,2]
[335254119,1724043033362,-151.0,0.00010998,2]
[335254120,1724043033371,-1358.44,0.00010998,2]
[335254121,1724043033381,-1358.44,0.00010998,2]
[335254122,1724043033390,-500.0,0.00010998,2]
[335254123,1724043033399,-500.0,0.00010998,2]
[335254124,1724043033407,-1618.07,0.00010998,2]
[335254125,1724043033418,-1618.07,0.00010998,2]
[335254126,1724043033427,-1104.73,0.00010998,2]
[335254127,1724043033436,-1104.73,0.00010998,2]
[335254128,1724043033445,-500.0,0.00010998,2]
[335254129,1724043033454,-500.0,0.00010998,2]
[335254130,1724043033463,-1722.25,0.00010998,2]
[335254131,1724043033472,-1722.25,0.00010998,2]
[335254132,1724043033481,-151.0,0.00010998,2]
[335254133,1724043033490,-151.0,0.00010998,2]
[335254134,1724043033499,-151.0,0.00010998,2]
[335254135,1724043033509,-151.0,0.00010998,2]
[335254136,1724043033518,-1580.127687,0.00010998,2]
[335254137,1724043033527,-1580.127687,0.00010998,2]
[335254138,1724043033536,-620.11,0.00010998,2]
[335254139,1724043033546,-620.11,0.00010998,2]
[335254140,1724043033555,-520.501741,0.00010998,2]
[335254141,1724043033565,-420.0,0.00010998,2]
[335254142,1724043033578,-520.501741,0.00010998,2]
[335254143,1724043033588,-285.37167589,0.00010998,2]
[335254144,1724043033597,-151.0,0.00010998,2]
[335254145,1724043033606,-500.0,0.00010998,2]
[335254146,1724043033616,-500.0,0.00010998,2]
[335254147,1724043033625,-151.0,0.00010998,2]
[335254148,1724043033635,-500.0,0.00010998,2]
[335254149,1724043033645,-500.0,0.00010998,2]
[335254150,1724043033654,-170.81404541,0.00010999,2]
[335254151,1724043033664,-182.17495918,0.00010999,2]
[335254152,1724043033673,-151.0,0.00010999,2]
[335254153,1724043033683,-151.0,0.00010999,2]
[335254154,1724043033692,-151.0,0.00010999,2]
[335254155,1724043033701,-151.0,0.00010999,2]
[335254156,1724043033711,-151.0,0.00010999,2]
[335254157,1724043033721,-151.0,0.00010999,2]
[335254158,1724043033730,-175.232956,0.00010999,2]
[335254159,1724043033740,-151.0,0.00010999,2]
[335254160,1724043033750,-151.0,0.00010999,2]
[335254161,1724043033759,-188.118168,0.00010999,2]
[335254162,1724043033768,-151.0,0.00010999,2]
[335254163,1724043033778,-151.961665,0.00010999,2]
[335254164,1724043033788,-151.0,0.00010999,2]
[335254165,1724043033797,-151.0,0.00010999,2]
[335254166,1724043033807,-151.0,0.00010999,2]
[335254167,1724043033818,-151.0,0.00010999,2]
[335254168,1724043033827,-151.0,0.00010999,2]
[335254169,1724043033836,-151.0,0.00010999,2]
[335254170,1724043033846,-151.0,0.00010999,2]
[335254171,1724043033857,-157.882587,0.00010999,2]
[335254172,1724043033867,-151.0,0.00010999,2]
[335254173,1724043033877,-252.986457,0.00010999,2]
[335254174,1724043033888,-151.0,0.00010999,2]
[335254175,1724043033897,-151.0,0.00010999,2]
[335254176,1724043033907,-151.0,0.00010999,2]
[335254177,1724043033917,-205.820651,0.00010999,2]
[335254178,1724043033928,-151.0,0.00010999,2]
[335254179,1724043033938,-151.0,0.00010999,2]
[335254180,1724043033948,-151.0,0.00010999,2]
[335254181,1724043033958,-152.250332,0.00010999,2]
[335254182,1724043033968,-161.755834,0.00010999,2]
[335254183,1724043033978,-161.755834,0.00010999,2]
[335254184,1724043033987,-161.755834,0.00010999,2]
[335254185,1724043033997,-161.755834,0.00010999,2]
[335254186,1724043034006,-161.755834,0.00010999,2]
[335254187,1724043034016,-161.755834,0.00010999,2]
[335254188,1724043034026,-161.755834,0.00010999,2]
[335254189,1724043034036,-161.755834,0.00010999,2]
[335254190,1724043034045,-151.0,0.00010999,2]
[335254191,1724043034055,-161.755834,0.00010999,2]
[335254192,1724043034066,-161.755834,0.00010999,2]
[335254193,1724043034078,-161.755834,0.00010999,2]
[335254194,1724043034088,-151.0,0.00010999,2]
[335254195,1724043034097,-161.755834,0.00010999,2]
[335254196,1724043034107,-151.0,0.00010999,2]
[335254197,1724043034117,-161.755834,0.00010999,2]
[335254198,1724043034127,-151.0,0.00010999,2]
[335254199,1724043034288,-161.755834,0.00010999,2]
[335254200,1724043034298,-157.582512,0.00010999,2]
[335254201,1724043034307,-161.755834,0.00010999,2]
[335254202,1724043034318,-161.75583,0.00010999,2]
[335254203,1724043034328,-570.809209,0.00010999,2]
[335254204,1724043034338,-570.809209,0.00010999,2]
[335254205,1724043034347,-570.809209,0.00010999,2]
[335254206,1724043034357,-570.809209,0.00010999,2]
[335254207,1724043034367,-570.809209,0.00010999,2]
[335254208,1724043034376,-570.809209,0.00010999,2]
[335254209,1724043034386,-570.809209,0.00010999,2]
[335254210,1724043034396,-570.809209,0.00010999,2]
[335254211,1724043034405,-570.809209,0.00010999,2]
[335254212,1724043034415,-570.809209,0.00010999,2]
[335254213,1724043034426,-570.809209,0.00010999,2]
[335254214,1724043034436,-570.809209,0.00010999,2]
[335254215,1724043034445,-570.809209,0.00010999,2]
[335254216,1724043034455,-570.809209,0.00010999,2]
[335254217,1724043034464,-570.809202,0.00010999,2]
[335254218,1724043034474,-2055.61,0.00010999,2]
[335254219,1724043034483,-2055.61,0.00010999,2]
[335254220,1724043034493,-2055.61,0.00010999,2]
[335254221,1724043034503,-2055.61,0.00010999,2]
[335254222,1724043034512,-2055.61,0.00010999,2]
[335254223,1724043034522,-2055.61,0.00010999,2]
[335254224,1724043034532,-2055.61,0.00010999,2]
[335254225,1724043034542,-2055.61,0.00010999,2]
[335254226,1724043034552,-2055.61,0.00010999,2]
[335254227,1724043034564,-2055.61,0.00010999,2]
[335254228,1724043034574,-2055.61,0.00010999,2]
[335254229,1724043034583,-2055.61,0.00010999,2]
[335254230,1724043034593,-2055.61,0.00010999,2]
[335254231,1724043034602,-2055.61,0.00010999,2]
[335254232,1724043034612,-2055.61,0.00010999,2]
[335254233,1724043034621,-2055.61,0.00010999,2]
[335254234,1724043034631,-2055.61,0.00010999,2]
[335254235,1724043034640,-2055.61,0.00010999,2]
[335254236,1724043034650,-2055.61,0.00010999,2]
[335254237,1724043034659,-151.0,0.00010999,2]
[335254238,1724043034669,-2055.61,0.00010999,2]
[335254239,1724043034679,-2055.61,0.00010999,2]
[335254240,1724043034688,-152.663427,0.00010999,2]
[335254241,1724043034698,-2055.76404123,0.00010999,2]
[335254242,1724043034707,-3073.44,0.00010999,2]
[335254243,1724043034716,-3073.44,0.00010999,2]
[335254244,1724043034725,-3073.44,0.00010999,2]
[335254245,1724043034735,-3073.44,0.00010999,2]
[335254246,1724043034744,-3073.44,0.00010999,2]
[335254247,1724043034754,-3073.44,0.00010999,2]
[335254248,1724043034763,-3073.44,0.00010999,2]
[335254249,1724043034773,-3073.44,0.00010999,2]
[335254250,1724043034782,-3073.44,0.00010999,2]
[335254251,1724043034792,-3073.44,0.00010999,2]
[335254252,1724043034802,-3073.44,0.00010999,2]
[335254253,1724043034811,-3073.44,0.00010999,2]
[335254254,1724043034821,-3073.44,0.00010999,2]
[335254255,1724043034831,-3073.44,0.00010999,2]
[335254256,1724043034840,-3073.44,0.00010999,2]
[335254257,1724043034849,-1494.63,0.00010999,2]
[335254258,1724043034859,-3073.44,0.00010999,2]
[335254259,1724043034868,-1494.63,0.00010999,2]
[335254260,1724043034877,-3073.44,0.00010999,2]
[335254261,1724043034886,-1494.63,0.00010999,2]
[335254262,1724043034895,-3073.44,0.00010999,2]
[335254263,1724043034904,-1494.63,0.00010999,2]
[335254264,1724043034914,-3073.44,0.00010999,2]
[335254265,1724043034923,-1494.63,0.00010999,2]
[335254266,1724043034932,-3073.44,0.00010999,2]
[335254267,1724043034942,-1494.63,0.00010999,2]
[335254268,1724043034951,-3073.44,0.00010999,2]
[335254269,1724043034960,-1494.63,0.00010999,2]
[335254270,1724043034970,-3073.57701992,0.00010999,2]
[335254271,1724043034980,-1494.63,0.00010999,2]
[335254272,1724043034989,-1494.63,0.00010999,2]
[335254273,1724043034998,-1494.63,0.00010999,2]
[335254274,1724043035008,-1494.63,0.00010999,2]
[335254275,1724043035018,-1494.63,0.00010999,2]
[335254276,1724043035027,-1494.63,0.00010999,2]
[335254277,1724043035036,-1494.63,0.00010999,2]
[335254278,1724043035045,-1494.63,0.00010999,2]